[Event "4th Tata Steel India Blitz Women 2022"]
[Site "Kolkota"]
[Date "2022.12.04"]
[Round "14.3"]
[White "Muzychuk, Mariya"]
[Black "Vaishali, Rameshbabu"]
[Result "1/2-1/2"]
[ECO "C54"]
[WhiteElo "2528"]
[BlackElo "2454"]
[Annotator "TA"]
[PlyCount "89"]
[EventDate "2022.11.29"]
[EventType "tourn"]
[EventCountry "IND"]
[SourceTitle "playchess.com"]
[Source "ChessBase"]
[SourceQuality "1"]
[TimeControl "180+2"]

{[%evp 13,89,15,20,23,24,24,22,23,18,-28,28,12,43,31,54,50,43,39,50,46,50,22,49,38,42,43,51,43,45,27,33,26,92,82,114,123,110,109,136,120,117,119,207,160,166,118,177,131,239,88,240,91,94,82,78,78,79,65,75,66,66,66,68,68,68,68,70,47,47,47,47,47,47,47,47,0,47,0]} 1. e4 {[%emt 0:00:01]} e5 {[%emt 0:00:04]} 2. Nf3 {[%emt 0:00:01]} Nc6 {[%emt 0:00:01]} 3. Bc4 {[%emt 0:00:02]} Nf6 {[%emt 0:00:02]} 4. d3 {[%emt 0:00:02]} Bc5 {[%emt 0:00:03]} 5. O-O {[%emt 0:00:04]} a6 {[%emt 0:00:04]} 6. c3 {[%emt 0:00:03]} d6 {[%emt 0:00:02]} 7. a4 {[%emt 0:00:11]} h6 {[%emt 0:00:11]} 8. Re1 $1 {[%emt 0:00:30] 8.Re1 scores better than 8.Nbd2. C54: Giuoco Piano: 4 c3 Nf6, main lines with 5 d4 and 5 d3.} Ba7 {[%emt 0:00:16]} 9. Nbd2 {[%emt 0:00:07]} O-O {[%emt 0:00:50]} 10. Nf1 {[%emt 0:00:32] The position is equal.} Be6 {[%emt 0:00:43]} 11. Ng3 {[%emt 0:00:03] [#]} (11. Bxe6 $142 fxe6 12. Be3) 11... a5 $146 {[%emt 0:00:06]} (11... Nxe4 $142 $1 12. Nxe4 (12. Rxe4 d5 $17) 12... d5) ({Predecessor:} 11... Bxc4 12. dxc4 Qd7 13. h3 Kh7 14. a5 Nd8 15. Qc2 Ne6 16. Nf5 Rad8 17. b3 Rfe8 {½-½ (52) Sivuk,V (2520)-Shuvalova,P (2387) Moscow 2017}) 12. Bb5 $11 {[%emt 0:00:06]} Ne7 {[%emt 0:00:19]} 13. d4 {[%emt 0:00:02]} Ng6 {[%emt 0:00:01]} 14. h3 {[%emt 0:00:29]} c6 {[%emt 0:00:05]} 15. Bd3 {[%emt 0:00:04]} Re8 {[%emt 0:00:08]} 16. Be3 {[%emt 0:00:06]} Nh7 {[%emt 0:00:16]} 17. Qc2 {[%emt 0:00:08]} Nh4 {[%emt 0:00:09]} 18. Nxh4 {[%emt 0:00:04]} (18. dxe5 $2 {loses.} Nxf3+ 19. gxf3 Ng5 20. Bxg5 Qxg5 $19) 18... Qxh4 {[%emt 0:00:02]} 19. d5 {[%emt 0:00:13]} Bd7 {[%emt 0:00:11]} 20. Bxa7 {[%emt 0:00:02]} Rxa7 21. Qe2 {[%emt 0:00:02]} Ng5 {[%emt 0:00:03]} 22. Qe3 {[%emt 0:00:01]} c5 {[%emt 0:00:02]} (22... Raa8 $11) 23. Bb5 $16 {[%emt 0:00:16]} b6 {[%emt 0:00:04]} 24. Bxd7 {[%emt 0:00:02]} Rxd7 {[%emt 0:00:01]} 25. Nf5 {[%emt 0:00:03] Prevents g6.} Qh5 {[%emt 0:00:04]} 26. h4 $36 {[%emt 0:00:01][%mdl 2048] Inhibits g6. White has strong initiative.} Nh7 {[%emt 0:00:02]} 27. Qh3 {[%emt 0:00:05] [#] Hoping for Ng3.} Rdd8 {[%emt 0:00:02]} (27... Nf6 $16) 28. f3 {[%emt 0:00:12]} Qg6 {[%emt 0:00:02]} 29. Kf2 {[%emt 0:00:03]} (29. b4 $18) 29... Qf6 {[%emt 0:00:02]} (29... h5 $16 30. g3 Qf6) 30. g4 {[%emt 0:00:03]} (30. Rg1 $18) 30... Rb8 {[%emt 0:00:02]} (30... g6 $16) 31. c4 $2 {[%emt 0:00:01]} (31. g5 $18 {is more deadly.} Qd8 32. Rg1 (32. gxh6 g6 $18)) 31... Nf8 $2 {[%emt 0:00:03]} (31... Qd8 $16 {was called for.}) 32. Rg1 {[%emt 0:00:03]} (32. g5 $1 $18 {[%cal Rg5f6] and the rest is easy.} Qd8 33. gxh6) 32... Qd8 {[%emt 0:00:03]} 33. g5 {[%emt 0:00:01]} h5 {[%emt 0:00:01]} 34. Ng3 {[%emt 0:00:15][%cal Bf5g3,Bg3e2,Be2c3,Bc3b5][%mdl 32] White has more active pieces.} g6 {[%emt 0:00:01]} 35. Ne2 {[%emt 0:00:02]} (35. Ke3 {keeps more tension.} Qd7 36. Qh2 Qe7 37. Ne2) 35... Qc8 {[%emt 0:00:01]} 36. Qxc8 {[%emt 0:00:02]} Rexc8 {[%emt 0:00:02]} 37. b3 {[%emt 0:00:01]} Nd7 {[%emt 0:00:04]} 38. Nc3 {[%emt 0:00:00] And now Nb5 would win.} Kf8 $1 {[%emt 0:00:01]} 39. Nb5 {[%emt 0:00:02]} Ke7 {[%emt 0:00:02]} 40. Ke3 {[%emt 0:00:01]} (40. Na7 $5 {[%cal Ra7c8]}) 40... Ra8 {[%emt 0:00:02] Against Na7} 41. Rg2 {[%emt 0:00:04]} Rf8 {[%emt 0:00:02]} 42. Rag1 {[%emt 0:00:01]} Rg8 {[%emt 0:00:01]} 43. Rg3 {[%emt 0:00:01]} Rgf8 {[%emt 0:00:01]} 44. R3g2 {[%emt 0:00:01]} Rg8 $1 {[%emt 0:00:02]} 45. Rg3 {[%emt 0:00:00] Blacks defense is rewarded with a draw.   Weighted Error Value: White=0.18 (very precise) /Black=0.20 (precise)} (45. Na3 $14) 1/2-1/2

[Event "4th Tata Steel India Blitz Women 2022"]
[Site "Kolkota"]
[Date "2022.12.04"]
[Round "14.4"]
[White "Kulkarni Bhakti"]
[Black "Ushenina, Anna"]
[Result "1/2-1/2"]
[ECO "D40"]
[WhiteElo "2359"]
[BlackElo "2454"]
[Annotator "TA"]
[PlyCount "64"]
[EventDate "2022.11.29"]
[EventType "tourn"]
[EventCountry "IND"]
[SourceTitle "playchess.com"]
[Source "ChessBase"]
[SourceQuality "1"]
[TimeControl "180+2"]

{[%evp 20,64,6,0,13,3,29,15,8,0,5,0,6,-17,-20,-29,-27,-31,-31,-31,-28,-31,-30,-30,-25,-24,-11,-12,-12,-12,-14,-14,0,-8,5,0,7,0,0,0,0,0,0,0,8,0,0]} 1. d4 {[%emt 0:00:01]} d5 {[%emt 0:00:01]} 2. c4 {[%emt 0:00:03]} dxc4 {[%emt 0:00:02]} 3. Nf3 {[%emt 0:00:02]} Nf6 {[%emt 0:00:04]} 4. e3 {[%emt 0:00:01]} e6 {[%emt 0:00:01]} 5. Bxc4 {[%emt 0:00:01]} c5 {[%emt 0:00:01]} 6. O-O {[%emt 0:00:03]} Nc6 {[%emt 0:00:02]} 7. Nc3 {[%emt 0:00:02]} a6 {[%emt 0:00:04]} 8. dxc5 {[%emt 0:00:14]} Qxd1 {[%emt 0:00:08]} 9. Rxd1 {[%emt 0:00:01]} Bxc5 {[%emt 0:00:01]} 10. a3 {[%emt 0:00:02]} O-O {[%emt 0:00:08]} 11. b4 {[%emt 0:00:02]} Be7 {[%emt 0:00:09] D40: Queen's Gambit Declined: Semi-Tarrasch with 5 e3.} 12. Bb2 {[%emt 0:00:02]} Bd7 {[%emt 0:00:06][%cal Bc8d7,Bd7e8,Be8c6,Bc6d5][%mdl 32]} 13. Rac1 {[%emt 0:00:07]} Rfd8 {[%emt 0:00:04] [#]} 14. Bb3 $146 {[%emt 0:00:08]} ({Predecessor:} 14. Ne2 Rac8 15. Bb3 Ng4 16. h3 Bf6 17. Ned4 Nge5 18. Nxe5 Nxe5 19. f4 Rxc1 20. Bxc1 {0-1 (56) Lycett,G (1652)-Le,T (1971) Box Hill 2001}) 14... Be8 {[%emt 0:00:04]} 15. Na4 {[%emt 0:00:03]} Rxd1+ {[%emt 0:00:05]} 16. Rxd1 {[%emt 0:00:02]} b5 {[%emt 0:00:06]} 17. Nc5 {[%emt 0:00:10]} (17. Nc3 {simplifies} Rb8 18. Nd4 Nxd4 19. Rxd4 Ra8 20. Nb1) 17... a5 {[%emt 0:00:03]} 18. Ne5 {[%emt 0:00:31]} axb4 {[%emt 0:00:10]} 19. Nxc6 {[%emt 0:00:13][%mdl 64] [#] Remove Defender} Bxc6 {[%emt 0:00:02]} (19... Bxc5 {simplifies} 20. Nxb4 Ne4 21. g3 Be7) 20. axb4 {[%emt 0:00:01]} Nd5 {[%emt 0:00:22]} 21. Bxd5 {[%emt 0:01:08]} Bxd5 {[%emt 0:00:02]} 22. Ra1 {[%emt 0:00:02]} Rc8 {[%emt 0:00:39]} 23. Bd4 {[%emt 0:00:09] The position is equal.} f6 {[%emt 0:00:20]} 24. Ra7 {[%emt 0:00:04] Against e5} Bf8 {[%emt 0:00:07]} 25. f4 {[%emt 0:00:05] Prevents e5.} Re8 {[%emt 0:00:29]} 26. Kf2 {[%emt 0:00:23]} Bc4 {[%emt 0:00:23]} 27. g3 {[%emt 0:00:03]} h6 {[%emt 0:00:02]} 28. Ra6 {[%emt 0:00:05]} e5 {[%emt 0:00:06]} 29. fxe5 {[%emt 0:00:01]} fxe5 {[%emt 0:00:00]} 30. Bc3 {[%emt 0:00:01]} Bxc5 {[%emt 0:00:07]} 31. bxc5 {[%emt 0:00:02]} Rc8 {[%emt 0:00:02]} (31... b4 $5 32. Ra4 $8 Rf8+ 33. Kg1 Rf1+ 34. Kg2 Rc1 35. Bxe5 (35. Rxb4 $2 {perishes.} Rxc3 36. h4 Bd5+ 37. Kf2 Rxc5 $19) 35... Bd5+ 36. Kf2 Rc2+ 37. Ke1 b3 $11) 32. Bxe5 {[%emt 0:00:02]} Rxc5 {[%emt 0:00:01] Weighted Error Value: White=0.04 (flawless) /Black=0.05 (flawless)} 1/2-1/2

[Event "4th Tata Steel India Blitz Women 2022"]
[Site "Kolkota"]
[Date "2022.12.04"]
[Round "14.5"]
[White "Muzychuk, Anna"]
[Black "Kiolbasa, Oliwia"]
[Result "1-0"]
[ECO "C69"]
[WhiteElo "2525"]
[BlackElo "2406"]
[Annotator "TA"]
[PlyCount "107"]
[EventDate "2022.11.29"]
[EventType "tourn"]
[EventCountry "IND"]
[SourceTitle "playchess.com"]
[Source "ChessBase"]
[SourceQuality "1"]
[TimeControl "180+2"]

{[%evp 21,107,0,0,15,0,7,37,37,62,37,27,0,0,0,0,0,0,0,0,0,-20,-32,-11,-19,2,0,0,0,0,0,0,0,0,0,0,0,4,-17,-12,-12,-13,-13,-16,-19,-16,-18,-18,-21,-24,-27,0,0,0,0,0,-62,-41,-54,-52,-54,0,0,0,0,0,0,8,0,8,8,8,8,8,8,29976,8,8,8,8,8,8,8,8,8,68,8,5065,68]} 1. e4 {[%emt 0:00:01]} e5 {[%emt 0:00:01]} 2. Nf3 {[%emt 0:00:00]} Nc6 {[%emt 0:00:02]} 3. Bb5 {[%emt 0:00:01]} a6 {[%emt 0:00:02]} 4. Bxc6 {[%emt 0:00:01]} dxc6 {[%emt 0:00:02]} 5. O-O {[%emt 0:00:01]} f6 {[%emt 0:00:03]} 6. d4 {[%emt 0:00:01]} exd4 {[%emt 0:00:01]} 7. Nxd4 {[%emt 0:00:01][%cal Bf3d4,Bd4e2,Be2f4,Bf4h5,Bh5g3,Bg3e4][%mdl 32]} c5 {[%emt 0:00:05]} 8. Ne2 {[%emt 0:00:01]} Qxd1 {[%emt 0:00:03]} 9. Rxd1 {[%emt 0:00:01]} Bd7 {[%emt 0:00:05]} 10. Be3 {[%emt 0:00:04]} O-O-O {[%emt 0:00:05]} 11. Nbc3 {[%emt 0:00:01]} Bd6 {[%emt 0:00:16]} 12. Bf4 {[%emt 0:00:09] C69: Ruy Lopez: Exchange Variation with 5 0-0 f6.} Bxf4 {[%emt 0:00:15]} 13. Nxf4 {[%emt 0:00:02]} Re8 {[%emt 0:00:02]} 14. f3 {[%emt 0:00:30] White is slightly better.} Nh6 {[%emt 0:00:12]} 15. Nh5 {[%emt 0:00:18] White is more active.} Rhg8 {[%emt 0:00:07] [#]} 16. Nd5 $146 {[%emt 0:00:08][%cal Od5f6]} ({Predecessor:} 16. Kf2 f5 17. Ng3 fxe4 18. Ncxe4 b6 19. Re1 Nf7 20. h3 Ne5 21. Nd2 a5 22. Re3 {0-1 (44) Asmundsson,I (2299)-Klovans,J (2463) Lignano Sabbiadoro 2005}) 16... f5 {[%emt 0:00:07]} 17. Ng3 {[%emt 0:00:25]} b6 {[%emt 0:00:17]} 18. Rd2 {[%emt 0:00:04]} fxe4 {[%emt 0:00:07]} 19. Nxe4 {[%emt 0:00:05]} Nf5 {[%emt 0:00:02]} 20. c3 {[%emt 0:00:20]} Bc6 {[%emt 0:00:02]} 21. Kf2 {[%emt 0:00:01]} Rgf8 {[%emt 0:00:02]} 22. Ng3 {[%emt 0:00:16]} g5 {[%emt 0:00:54]} (22... Nd6 $5 {[%cal Rd6c4]} 23. b3 Kb7 $11) 23. Re1 {[%emt 0:00:35]} Rxe1 {[%emt 0:00:02]} 24. Kxe1 {[%emt 0:00:01]} Bxd5 {[%emt 0:00:04]} 25. Rxd5 $11 {[%emt 0:00:01][%mdl 4096] Endgame KRN-KRN} Ne3 {[%emt 0:00:01][%csl LRd5,LRg2]} 26. Rxg5 {[%emt 0:00:04] Ne4 is the strong threat.} Nxg2+ {[%emt 0:00:01]} 27. Ke2 $1 {[%emt 0:00:17]} Nf4+ {[%emt 0:00:14]} 28. Ke3 {[%emt 0:00:08]} c4 {[%emt 0:00:18]} 29. Rf5 {[%emt 0:00:06]} Rxf5 {[%emt 0:00:07]} 30. Nxf5 {[%emt 0:00:01] KN-KN} Nd3 {[%emt 0:00:01]} 31. b4 {[%emt 0:00:04] [#]} cxb3 $1 {[%emt 0:00:07]} 32. axb3 {[%emt 0:00:01]} Nc5 {[%emt 0:00:02]} 33. b4 {[%emt 0:00:01]} Ne6 {[%emt 0:00:01]} 34. Ne7+ {[%emt 0:00:04]} Kd7 {[%emt 0:00:03]} 35. Nd5 {[%emt 0:00:02]} a5 {[%emt 0:00:09]} 36. bxa5 {[%emt 0:00:02]} bxa5 {[%emt 0:00:01]} 37. Nf6+ {[%emt 0:00:01]} Ke7 {[%emt 0:00:00]} 38. Nd5+ {[%emt 0:00:06]} ({White should play} 38. Nxh7 $11 Kf7 39. h4) 38... Kd6 {[%emt 0:00:02]} 39. Nf6 {[%emt 0:00:01]} a4 {[%emt 0:00:05] Threatens to win with ...a3.} (39... h6 $5 {[%cal Ra5a4]}) 40. Kd3 $1 {[%emt 0:00:01]} Ke5 {[%emt 0:00:02]} (40... Nf8 $15) 41. Nxh7 {[%emt 0:00:05]} Kf5 {[%emt 0:00:04]} 42. h4 {[%emt 0:00:03]} a3 {[%emt 0:00:04] ( -> ...a2)} (42... Kg6 $5 43. Ng5 $8 Nxg5 44. hxg5 Kxg5 $11) 43. Kc2 {[%emt 0:00:00]} Kf4 {[%emt 0:00:04]} (43... Kg6 $5 44. Ng5 $8 Nxg5 45. hxg5 Kxg5 $11) 44. Ng5 {[%emt 0:00:03]} Ng7 {[%emt 0:00:03]} 45. Kb3 {[%emt 0:00:02]} Nf5 {[%emt 0:00:02]} (45... a2 {simplifies} 46. Kxa2 Nf5 47. Ne6+ Kxf3 48. Nxc7 Nxh4 49. Nb5 Ke4) 46. Ne6+ {[%emt 0:00:03]} (46. Kxa3 {simplifies} Nxh4 47. Ne6+ Kxf3 48. Kb4) 46... Kxf3 {[%emt 0:00:02]} 47. h5 {[%emt 0:00:03]} (47. Nxc7 {simplifies} Nxh4 48. Nb5 Nf5 49. Kxa3 Ke4 50. Kb4) 47... c6 $2 {[%emt 0:00:01][%mdl 8192]} (47... Kg4 $11) 48. Ng7 $2 {[%emt 0:00:03]} Nh6 {[%emt 0:00:03]} (48... Nxg7 49. h6 Nh5 50. h7 $18 (50. Kxa3 Nf6 $11)) ({But not} 48... a2 49. Kxa2 Nh6 50. Ka3 $14) 49. Kxa3 {[%emt 0:00:04]} Ke4 {[%emt 0:00:01]} 50. Kb4 {[%emt 0:00:01]} Kd5 {[%emt 0:00:03]} 51. Ne8 {[%emt 0:00:03]} c5+ {[%emt 0:00:02]} 52. Kb5 {[%emt 0:00:01] Black must now prevent c4+.} Nf5 {[%emt 0:00:02]} (52... c4 $11) 53. Nf6+ {[%emt 0:00:05]} (53. c4+ $14 Ke6 54. Kxc5) 53... Ke6 $2 {[%emt 0:00:03][%mdl 8192]} (53... Ke5 $11) 54. Ne4 $2 {Weighted Error Value: White=0.26 (precise) /Black=0.24 (precise)} (54. Ng4 $18 Nd6+ 55. Kxc5 Ne4+ 56. Kd4) 1-0

[Event "4th Tata Steel India Blitz Women 2022"]
[Site "Kolkota"]
[Date "2022.12.04"]
[Round "15.1"]
[White "Kiolbasa, Oliwia"]
[Black "Muzychuk, Mariya"]
[Result "1-0"]
[ECO "B33"]
[WhiteElo "2406"]
[BlackElo "2528"]
[Annotator "TA"]
[PlyCount "49"]
[EventDate "2022.11.29"]
[EventType "tourn"]
[EventCountry "IND"]
[SourceTitle "playchess.com"]
[Source "ChessBase"]
[SourceQuality "1"]
[TimeControl "180+2"]

{[%evp 22,49,19,16,8,9,18,10,24,22,14,18,34,21,22,16,12,0,0,0,0,-15,0,0,0,0,102,56,686,694]} 1. e4 {[%emt 0:00:01]} c5 {[%emt 0:00:00]} 2. Nf3 {[%emt 0:00:01][%cal Bg1f3,Bf3d4,Bd4b5,Bb5a3,Ba3c2][%mdl 32]} Nc6 3. Nc3 {[%emt 0:00:02]} e6 {[%emt 0:00:09]} 4. d4 {[%emt 0:00:02]} cxd4 {[%emt 0:00:01]} 5. Nxd4 {[%emt 0:00:01]} Nf6 {[%emt 0:00:01]} 6. Ndb5 {[%emt 0:00:11]} d6 {[%emt 0:00:02]} 7. Bf4 {[%emt 0:00:01]} e5 {[%emt 0:00:00]} 8. Bg5 a6 9. Na3 {[%emt 0:00:02]} b5 {[%emt 0:00:01]} 10. Nd5 {[%emt 0:00:04]} Be7 {[%emt 0:00:01]} 11. Bxf6 {[%emt 0:00:03]} Bxf6 {[%emt 0:00:00]} 12. c4 {[%emt 0:00:03]} b4 {[%emt 0:00:05] B33: Sicilian: Pelikan and Sveshnikov Variations.} 13. Nc2 {[%emt 0:00:02]} O-O {[%emt 0:00:18]} 14. g3 {[%emt 0:00:02]} Be6 {[%emt 0:00:06] The position is equal. 14...g6 gains popularity.} 15. Bg2 {[%emt 0:00:09]} a5 {[%emt 0:00:28]} 16. O-O {[%emt 0:00:04]} Rb8 {[%emt 0:00:27]} 17. b3 {[%emt 0:00:01]} Bxd5 {[%emt 0:00:18]} 18. Qxd5 {[%emt 0:01:46]} Qb6 {[%emt 0:00:01]} 19. Rad1 {[%emt 0:00:12]} (19. Qxd6 $2 {perishes.} Rfd8 $19) 19... Nd4 {[%emt 0:00:07]} 20. Nxd4 {[%emt 0:00:06]} exd4 {[%emt 0:00:01] [#]} 21. Rd3 $146 {[%emt 0:00:01]} ({Predecessor:} 21. Qh5 a4 22. f4 Rfe8 23. g4 d3+ 24. Kh1 Qe3 25. Qd5 Qe2 26. g5 Bc3 27. Qxd3 Qxa2 28. bxa4 {1-0 (41) Omonova,U (2078)-Zavivaeva,E (1745) Mumbai 2019}) 21... Rfc8 {[%emt 0:00:17] [#] Hoping for ...Rc5.} 22. Qf5 {[%emt 0:00:16]} a4 {[%emt 0:00:06]} 23. Rfd1 {[%emt 0:00:13]} Ra8 {[%emt 0:00:03]} (23... Rc5 $11 {remains equal.} 24. Qf3 Ra5) 24. f4 {[%emt 0:00:06] White is much more active.} (24. e5 $16 dxe5 25. Bxa8 Rxa8 26. Qe4) 24... Ra5 $2 {[%emt 0:00:04][%mdl 8192]} 25. Qxc8+ {[%emt 0:00:03] Weighted Error Value: White=0.09 (flawless) /Black=0.62} 1-0

[Event "4th Tata Steel India Blitz Women 2022"]
[Site "Kolkota"]
[Date "2022.12.04"]
[Round "15.2"]
[White "Harika, Dronavalli"]
[Black "Kulkarni Bhakti"]
[Result "0-1"]
[ECO "A00"]
[WhiteElo "2507"]
[BlackElo "2359"]
[Annotator "TA"]
[PlyCount "88"]
[EventDate "2022.11.29"]
[EventType "tourn"]
[EventCountry "IND"]
[SourceTitle "playchess.com"]
[Source "ChessBase"]
[SourceQuality "1"]
[TimeControl "180+2"]

{[%evp 9,88,8,1,0,10,23,18,0,15,17,23,21,23,22,67,9,23,0,0,-12,0,-9,-14,-9,0,0,0,0,180,13,228,18,138,132,298,333,489,31,122,106,595,578,1426,1366,1418,-2107,-2061,-29985,-29986,-29986,-29987,-29987,-29988,-29990,-29991,-29991,-6295,-6223,-6099,-1781,-1242,-1506,0,0,0,0,0,0,0,-5873,-5873,-5097,-5081,-1389,-812,-29986,-29987,-29991,-29992,-29992,-29992]} 1. g3 {[%emt 0:00:01]} Nf6 {[%emt 0:00:06]} 2. Bg2 {[%emt 0:00:01]} d5 {[%emt 0:00:01]} 3. d3 {[%emt 0:00:11]} c6 {[%emt 0:00:02]} 4. Nd2 {[%emt 0:00:02]} h6 {[%emt 0:00:02]} 5. e4 {[%emt 0:00:09]} dxe4 {[%emt 0:00:13]} 6. dxe4 {[%emt 0:00:01] A00: Irregular Openings.} e5 {[%emt 0:00:01]} 7. Ngf3 {[%emt 0:00:10]} Qc7 {[%emt 0:00:06]} 8. O-O {[%emt 0:00:03] The position is equal.} Be6 {[%emt 0:00:06] Against Nc4} 9. b3 {[%emt 0:00:05] [#]} Bd6 $146 {[%emt 0:00:04]} ({Predecessor:} 9... Nbd7 10. Bb2 Bc5 11. Qe2 b5 12. a4 Rb8 13. Ne1 O-O 14. Nd3 Bb6 15. Nf3 Bg4 {1-0 (67) Nakamura,H (2768)-Maghsoodloo,P (2721) Chess.com INT 2022}) 10. Bb2 {[%emt 0:00:01]} O-O {[%emt 0:00:06]} 11. Qe2 {[%emt 0:00:01]} b5 {[%emt 0:00:13]} 12. a4 {[%emt 0:00:04]} (12. c4 $14) 12... a6 $11 {[%emt 0:00:05]} 13. Rfd1 {[%emt 0:00:27]} Nbd7 {[%emt 0:00:10]} 14. h3 {[%emt 0:00:02]} Nc5 {[%emt 0:00:02]} 15. axb5 {[%emt 0:00:08]} axb5 {[%emt 0:00:02]} 16. Nh4 {[%emt 0:00:11]} g6 {[%emt 0:00:08] Inhibits Nf5.} 17. Nf1 {[%emt 0:00:25]} Kh7 {[%emt 0:00:11]} 18. f4 {[%emt 0:00:11][%cal Od1d6]} Nh5 $2 {[%emt 0:00:51] [#]} (18... Rxa1 $11 {and Black has nothing to worry.} 19. Rxa1 Ncd7) 19. f5 $2 {[%emt 0:00:03]} (19. Rxa8 $1 $18 Rxa8 20. f5) 19... Bd7 $2 {[%emt 0:00:01]} (19... Rxa1 $11 {and Black is okay.} 20. Rxa1 (20. Bxa1 Bc8 $11) 20... Bc8) 20. Bf3 $2 {[%emt 0:00:14]} (20. fxg6+ $18 fxg6 21. Rxa8 Rxa8 22. Qd2) 20... Ng7 {[%emt 0:00:25]} (20... Rxa1 $11 21. Rxa1 (21. Bxa1 Nf6 $11) 21... Nf6) 21. Ne3 {[%emt 0:00:01]} Be7 $2 {[%emt 0:00:09]} (21... Rxa1 $16 22. Bxa1 (22. Rxa1 Bc8 $16) 22... Ne8) 22. Ng4 $18 {[%emt 0:00:16] Strongly threatening Qe3.} gxf5 {[%emt 0:00:14]} (22... Rxa1 $142 23. Bxa1 (23. Rxa1 h5 $16) 23... Qa7) 23. Nxe5 $2 {[%emt 0:00:07]} ({White should try} 23. Bxe5 $18 Qb6 24. exf5 Nxf5 25. Rxa8 Rxa8 26. Kh1) 23... Bxh4 {[%emt 0:00:05]} (23... Bf6 $14 24. Rxa8 Rxa8 25. Nxd7 (25. exf5 Re8 $11) 25... Nxd7 26. Bxf6 Nxf6) 24. gxh4 $16 {[%emt 0:00:04]} fxe4 $2 {[%emt 0:00:02][%mdl 8192]} (24... Rae8 $16) 25. Bxe4+ $18 {[%emt 0:00:03]} f5 {[%emt 0:00:01]} 26. Rxa8 {[%emt 0:00:07][%cal Oe2g2] [#] Threatening mate with Qg2!} Rxa8 {[%emt 0:00:02]} 27. Qh5 $4 {[%emt 0:00:13][%mdl 8192]} Nxh5 $19 {[%emt 0:00:02]} 28. Rxd7+ {[%emt 0:00:01]} Nxd7 {[%emt 0:00:01]} 29. Bxf5+ {[%emt 0:00:01]} Kg8 {[%emt 0:00:03]} 30. Be6+ {[%emt 0:00:09]} Kf8 {[%emt 0:00:01]} 31. Nxd7+ {[%emt 0:00:03]} Ke7 {[%emt 0:00:04]} 32. Bg4 {[%emt 0:00:01]} Rd8 {[%emt 0:00:04]} (32... Qg3+ $142 33. Kf1 Ra2 34. Ne5 Nf4 35. Nxc6+ Kf8 36. Ne5 Rxb2 37. Ng6+ Nxg6 38. h5 Rb1+ 39. Bd1 Nf4 40. c4 Rxd1#) 33. Ba3+ {[%emt 0:00:02]} c5 {[%emt 0:00:06]} 34. Bxc5+ {[%emt 0:00:01]} Kf7 {[%emt 0:00:03]} 35. Bxh5+ {[%emt 0:00:01]} Ke6 $2 {[%emt 0:00:06]} (35... Kg8 $19 36. Nf6+ Kh8) 36. Bg4+ $11 {[%emt 0:00:02]} Kd5 {[%emt 0:00:01]} 37. Bf3+ {[%emt 0:00:12]} Ke6 {[%emt 0:00:01] ( -> ...Qg3+)} 38. Bg4+ {[%emt 0:00:01] A strong pair of Bishops.} Kf7 $2 {[%emt 0:00:02][%mdl 8192]} (38... Kd5 $11 39. Bf3+ Ke6 40. Bg4+) 39. Bh5+ $19 {[%emt 0:00:02]} Kg8 {[%emt 0:00:04]} 40. Nf6+ {[%emt 0:00:15]} Kh8 {[%emt 0:00:01]} 41. Ne4 {[%emt 0:00:03]} Qe5 {[%emt 0:00:07]} 42. Bb6 {[%emt 0:00:06]} Rg8+ {[%emt 0:00:03] Black mates.} 43. Kf2 {[%emt 0:00:04]} Qxe4 {[%emt 0:00:01]} 44. Bg4 {[%emt 0:00:01]} Rf8+ {[%emt 0:00:01] Never resign too early!   Weighted Error Value: White=0.84/Black=0.88} 0-1

[Event "4th Tata Steel India Blitz Women 2022"]
[Site "Kolkota"]
[Date "2022.12.04"]
[Round "15.3"]
[White "Ushenina, Anna"]
[Black "Muzychuk, Anna"]
[Result "1/2-1/2"]
[ECO "D85"]
[WhiteElo "2454"]
[BlackElo "2525"]
[Annotator "TA"]
[PlyCount "54"]
[EventDate "2022.11.29"]
[EventType "tourn"]
[EventCountry "IND"]
[SourceTitle "playchess.com"]
[Source "ChessBase"]
[SourceQuality "1"]
[TimeControl "180+2"]

{[%evp 15,54,10,16,0,2,0,0,16,10,0,0,0,3,-22,-21,-31,-2,-3,0,0,8,14,6,0,16,22,16,-12,-8,-49,0,-10,0,0,19,19,19,19,29,2,16]} 1. d4 {[%emt 0:00:02]} Nf6 {[%emt 0:00:00]} 2. c4 {[%emt 0:00:01]} g6 {[%emt 0:00:04]} 3. Nc3 {[%emt 0:00:02]} d5 {[%emt 0:00:01]} 4. cxd5 {[%emt 0:00:03]} Nxd5 {[%emt 0:00:00]} 5. e4 {[%emt 0:00:04]} Nxc3 {[%emt 0:00:02]} 6. bxc3 {[%emt 0:00:01]} Bg7 {[%emt 0:00:00]} 7. Qa4+ {[%emt 0:00:01] Recently 7.Nf3 got a lot of attention.} Nd7 {[%emt 0:00:04]} 8. Nf3 {[%emt 0:00:07]} O-O {[%emt 0:00:02]} 9. Qa3 {[%emt 0:00:15] D85: Exchange Grünfeld: Unusual White 7th moves and lines with 7 Nf3.} e5 {[%emt 0:00:05]} 10. Bg5 {[%emt 0:00:09]} Bf6 {[%emt 0:00:04]} 11. Bxf6 {[%emt 0:00:13]} Qxf6 {[%emt 0:00:02] [#]} 12. Rd1 $146 {[%emt 0:00:25]} ({Predecessor:} 12. Bd3 exd4 13. cxd4 c5 14. e5 Qf4 15. O-O cxd4 16. Qe7 Nb6 17. Rfe1 Bf5 18. Bxf5 Qxf5 19. Nxd4 {½-½ (34) Kobo,O (2460)-Paravyan,D (2647) Chess.com INT 2021}) 12... exd4 {[%emt 0:00:44]} 13. cxd4 {[%emt 0:00:02]} c5 {[%emt 0:00:12]} 14. dxc5 {[%emt 0:00:14]} Qe7 {[%emt 0:00:10]} 15. Be2 {[%emt 0:00:37]} Qxc5 {[%emt 0:00:14]} 16. Qb2 {[%emt 0:00:36]} Qa5+ {[%emt 0:00:03]} 17. Nd2 {[%emt 0:00:05][%cal Bf3d2,Bd2c4,Bc4d6][%mdl 32]} Qe5 {[%emt 0:00:11]} 18. Qxe5 {[%emt 0:00:05]} Nxe5 {[%emt 0:00:01][%cal Bd7e5,Be5c6,Bc6d4][%mdl 32]} 19. Nc4 {[%emt 0:00:04]} Nc6 {[%emt 0:00:15]} 20. Nd6 {[%emt 0:00:06]} Be6 {[%emt 0:00:01]} 21. Nxb7 {[%emt 0:00:13]} Bxa2 {[%emt 0:00:08]} 22. Ra1 {[%emt 0:00:02] Against a5} Be6 {[%emt 0:00:09]} (22... Nb4 $1 $15 {should be considered.} 23. O-O a5) 23. O-O {[%emt 0:00:03]} Nd4 {[%emt 0:00:05]} 24. Ba6 {[%emt 0:00:01]} Rac8 {[%emt 0:00:11]} 25. Rfd1 {[%emt 0:00:02]} Nb3 {[%emt 0:00:03]} 26. Ra3 {[%emt 0:00:01]} Rc7 {[%emt 0:00:22]} 27. f4 {[%emt 0:00:08][%cal Of4f5]} Nc5 {[%emt 0:00:09] Against f5. A balanced but interesting game.   Weighted Error Value: White=0.09 (flawless) /Black=0.09 (flawless)} 1/2-1/2